[Event "*** Titled Tuesday Blitz"]
[Site "Chess.com"]
[Date "2021.02.16"]
[Round "7"]
[White "Ladislav1969"]
[Black "Sergienko_Sergey"]
[Result "1-0"]
[WhiteElo "2326"]
[BlackElo "2425"]
[TimeControl "180+1"]
[EndTime "11:18:36 PST"]
[Termination "Ladislav1969 won by resignation"]

1. e4 {[%clk 0:03:00.9]} 1... c5 {[%clk 0:02:58.9]} 2. d4 {[%clk 0:02:58.7]}
2... cxd4 {[%clk 0:02:57.3]} 3. c3 {[%clk 0:02:59.6]} 3... Nf6 {[%clk
0:02:54.9]} 4. e5 {[%clk 0:02:59.2]} 4... Nd5 {[%clk 0:02:54.4]} 5. Nf3 {[%clk
0:03:00.1]} 5... Nc6 {[%clk 0:02:48.7]} 6. Bc4 {[%clk 0:03:00.5]} 6... Nb6
{[%clk 0:02:45.9]} 7. Bb3 {[%clk 0:03:01.1]} 7... d5 {[%clk 0:02:43.1]} 8. exd6
{[%clk 0:03:01]} 8... e6 {[%clk 0:02:37.7]} 9. Nxd4 {[%clk 0:02:54.6]} 9... Nxd4
{[%clk 0:02:32.1]} 10. Qxd4 {[%clk 0:02:53.9]} 10... Qxd6 {[%clk 0:02:31.6]} 11.
Be3 {[%clk 0:02:52.4]} 11... Qxd4 {[%clk 0:01:57.3]} 12. Bxd4 {[%clk 0:02:52.5]}
12... Be7 {[%clk 0:01:55.2]} 13. Bxg7 {[%clk 0:02:45.9]} 13... Rg8 {[%clk
0:01:52.8]} 14. Be5 {[%clk 0:02:45.8]} 14... Rxg2 {[%clk 0:01:52.1]} 15. Bg3
{[%clk 0:02:45.3]} 15... Bd7 {[%clk 0:01:51.9]} 16. Nd2 {[%clk 0:02:11.4]} 16...
Bc6 {[%clk 0:01:51.3]} 17. Ke2 {[%clk 0:01:34.9]} 17... O-O-O {[%clk 0:01:43.2]}
18. Nf3 {[%clk 0:01:19.3]} 18... h5 {[%clk 0:01:26.6]} 19. Rhd1 {[%clk
0:01:14.9]} 19... h4 {[%clk 0:00:56.9]} 20. Nxh4 {[%clk 0:01:05.8]} 20... Bxh4
{[%clk 0:00:32.9]} 21. Bxh4 {[%clk 0:01:06]} 21... Rxd1 {[%clk 0:00:29.8]} 22.
Rxd1 {[%clk 0:01:03.4]} 22... Rg4 {[%clk 0:00:27.9]} 23. Rd8+ {[%clk 0:00:54.6]}
23... Kc7 {[%clk 0:00:27.4]} 24. Rh8 {[%clk 0:00:54.4]} 24... Nd5 {[%clk
0:00:21]} 25. Bg3+ {[%clk 0:00:41.4]} 25... Kb6 {[%clk 0:00:20.7]} 26. h3 {[%clk
0:00:27.1]} 26... Rg6 {[%clk 0:00:17]} 27. h4 {[%clk 0:00:26.6]} 27... f5 {[%clk
0:00:16.3]} 28. Be5 {[%clk 0:00:25.8]} 28... f4 {[%clk 0:00:14.5]} 29. h5 {[%clk
0:00:25.7]} 29... Rg5 {[%clk 0:00:14.1]} 30. Bd4+ {[%clk 0:00:23.7]} 30... Kc7
{[%clk 0:00:14]} 31. h6 {[%clk 0:00:23.3]} 31... e5 {[%clk 0:00:13.8]} 32. Bc5
{[%clk 0:00:22.2]} 32... e4 {[%clk 0:00:12.7]} 33. h7 {[%clk 0:00:21.3]} 33...
Rh5 {[%clk 0:00:11.5]} 34. Bd4 {[%clk 0:00:20.5]} 34... f3+ {[%clk 0:00:10.4]}
35. Kd2 {[%clk 0:00:19.9]} 35... e3+ {[%clk 0:00:10.3]} 36. Bxe3 {[%clk
0:00:18.6]} 36... Nxe3 {[%clk 0:00:09.7]} 37. Kxe3 {[%clk 0:00:18.5]} 37... Kb6
{[%clk 0:00:09.4]} 38. Bc2 {[%clk 0:00:18.7]} 1-0

[Event "*** Titled Tuesday Blitz"]
[Site "Chess.com"]
[Date "2021.02.16"]
[Round "7"]
[White "Matols"]
[Black "onetowin"]
[Result "0-1"]
[WhiteElo "2242"]
[BlackElo "2026"]
[TimeControl "180+1"]
[EndTime "11:18:37 PST"]
[Termination "onetowin won on time"]

1. d4 {[%clk 0:03:00.9]} 1... b6 {[%clk 0:02:57.6]} 2. c4 {[%clk 0:02:57.9]}
2... Bb7 {[%clk 0:02:58.5]} 3. Nc3 {[%clk 0:02:56]} 3... e6 {[%clk 0:02:59]} 4.
e3 {[%clk 0:02:54.4]} 4... f5 {[%clk 0:02:54.5]} 5. Nge2 {[%clk 0:02:48.9]} 5...
Nf6 {[%clk 0:02:48.9]} 6. Nf4 {[%clk 0:02:47.7]} 6... Bd6 {[%clk 0:02:42.7]} 7.
Bd2 {[%clk 0:02:26.2]} 7... O-O {[%clk 0:02:41.1]} 8. Nd3 {[%clk 0:02:22.1]}
8... a6 {[%clk 0:02:28.9]} 9. Be2 {[%clk 0:02:18.3]} 9... Qe8 {[%clk 0:02:28.1]}
10. Bf3 {[%clk 0:02:14.6]} 10... Ne4 {[%clk 0:02:22.8]} 11. Qc2 {[%clk
0:02:07.6]} 11... Qg6 {[%clk 0:02:05.5]} 12. O-O-O {[%clk 0:02:03.7]} 12... c5
{[%clk 0:01:43.5]} 13. d5 {[%clk 0:01:54.4]} 13... Nxc3 {[%clk 0:01:35]} 14.
Bxc3 {[%clk 0:01:52.1]} 14... exd5 {[%clk 0:01:29.4]} 15. cxd5 {[%clk
0:01:48.2]} 15... c4 {[%clk 0:01:14.5]} 16. Ne5 {[%clk 0:01:43.8]} 16... Bxe5
{[%clk 0:01:09]} 17. Bxe5 {[%clk 0:01:42.7]} 17... d6 {[%clk 0:01:09.4]} 18. Bc3
{[%clk 0:01:40.3]} 18... b5 {[%clk 0:01:07.6]} 19. h4 {[%clk 0:01:39.6]} 19...
Nd7 {[%clk 0:01:03.4]} 20. h5 {[%clk 0:01:39]} 20... Qf7 {[%clk 0:00:57.3]} 21.
h6 {[%clk 0:01:37.9]} 21... g6 {[%clk 0:00:55.2]} 22. Kb1 {[%clk 0:01:29.1]}
22... Nc5 {[%clk 0:00:53.3]} 23. g4 {[%clk 0:01:13.7]} 23... fxg4 {[%clk
0:00:44.7]} 24. Bxg4 {[%clk 0:01:12.8]} 24... Bxd5 {[%clk 0:00:44.2]} 25. f3
{[%clk 0:00:44.7]} 25... Bxf3 {[%clk 0:00:27]} 26. Bxf3 {[%clk 0:00:35.3]} 26...
Qxf3 {[%clk 0:00:27.9]} 27. Rdg1 {[%clk 0:00:25.1]} 27... Nd3 {[%clk 0:00:26.3]}
28. Qh2 {[%clk 0:00:22.6]} 28... Qf6 {[%clk 0:00:19.8]} 29. Qh5 {[%clk 0:00:19]}
29... Qe6 {[%clk 0:00:17.9]} 30. Qg5 {[%clk 0:00:17.4]} 30... Qe4 {[%clk
0:00:17.4]} 31. Ka1 {[%clk 0:00:10.9]} 31... Rf2 {[%clk 0:00:16]} 32. Rh4 {[%clk
0:00:08.5]} 32... Qf3 {[%clk 0:00:12.9]} 33. Rf4 {[%clk 0:00:05.5]} 33... Nxf4
{[%clk 0:00:10.4]} 0-1

[Event "*** Titled Tuesday Blitz"]
[Site "Chess.com"]
[Date "2021.02.16"]
[Round "7"]
[White "TimofeevAr"]
[Black "DamianoLew95"]
[Result "1-0"]
[WhiteElo "2887"]
[BlackElo "2615"]
[TimeControl "180+1"]
[EndTime "11:18:40 PST"]
[Termination "TimofeevAr won by resignation"]

1. c4 {[%clk 0:03:00.9]} 1... e5 {[%clk 0:02:59.2]} 2. e3 {[%clk 0:03:00.1]}
2... Nf6 {[%clk 0:02:58.3]} 3. Nc3 {[%clk 0:02:59.9]} 3... d6 {[%clk 0:02:54.8]}
4. d3 {[%clk 0:02:55.8]} 4... g6 {[%clk 0:02:54.9]} 5. Nf3 {[%clk 0:02:55.8]}
5... Bg7 {[%clk 0:02:54.9]} 6. Be2 {[%clk 0:02:56.1]} 6... O-O {[%clk
0:02:55.3]} 7. O-O {[%clk 0:02:56.4]} 7... Nbd7 {[%clk 0:02:54]} 8. Rb1 {[%clk
0:02:54.8]} 8... Re8 {[%clk 0:02:53.3]} 9. b4 {[%clk 0:02:50.2]} 9... Nf8 {[%clk
0:02:53.4]} 10. Bb2 {[%clk 0:02:49.6]} 10... Ne6 {[%clk 0:02:53.2]} 11. Qc2
{[%clk 0:02:45.3]} 11... Qe7 {[%clk 0:02:48.3]} 12. Nd5 {[%clk 0:02:42.4]} 12...
Nxd5 {[%clk 0:02:21.9]} 13. cxd5 {[%clk 0:02:41.9]} 13... Nd8 {[%clk 0:02:22.5]}
14. b5 {[%clk 0:02:34.8]} 14... Bd7 {[%clk 0:02:14.8]} 15. Qb3 {[%clk
0:02:09.9]} 15... c5 {[%clk 0:02:03.4]} 16. bxc6 {[%clk 0:02:03.9]} 16... bxc6
{[%clk 0:02:02.2]} 17. Nd2 {[%clk 0:01:56.3]} 17... cxd5 {[%clk 0:01:56.1]} 18.
Qxd5 {[%clk 0:01:56.5]} 18... Rc8 {[%clk 0:01:30.3]} 19. Ba3 {[%clk 0:01:45.4]}
19... Rc2 {[%clk 0:01:05.4]} 20. Rfd1 {[%clk 0:01:44.5]} 20... Bf8 {[%clk
0:00:55.4]} 21. Qb3 {[%clk 0:01:39.5]} 21... Rc7 {[%clk 0:00:49.4]} 22. Ne4
{[%clk 0:01:38.7]} 22... Nb7 {[%clk 0:00:46.1]} 23. Bf3 {[%clk 0:01:34.2]} 23...
Bc6 {[%clk 0:00:42.9]} 24. Qb2 {[%clk 0:01:18.6]} 24... Nc5 {[%clk 0:00:39.8]}
25. Bxc5 {[%clk 0:01:17.1]} 25... dxc5 {[%clk 0:00:40]} 26. Rbc1 {[%clk
0:01:12.5]} 26... f5 {[%clk 0:00:38.1]} 27. Nd2 {[%clk 0:01:12.4]} 27... Bxf3
{[%clk 0:00:36]} 28. Nxf3 {[%clk 0:01:12.2]} 28... h6 {[%clk 0:00:34.4]} 29.
Qb3+ {[%clk 0:01:05.9]} 29... Kh7 {[%clk 0:00:33.7]} 30. h3 {[%clk 0:01:06.2]}
30... Bg7 {[%clk 0:00:33.7]} 31. Qa4 {[%clk 0:01:03.3]} 31... Rd8 {[%clk
0:00:32]} 32. e4 {[%clk 0:00:50.7]} 32... f4 {[%clk 0:00:28.9]} 33. Qc4 {[%clk
0:00:48.2]} 33... g5 {[%clk 0:00:28.4]} 34. Nd2 {[%clk 0:00:42.4]} 34... Rd4
{[%clk 0:00:26.9]} 35. Qc2 {[%clk 0:00:40.8]} 35... Bf8 {[%clk 0:00:18.5]} 36.
Nb3 {[%clk 0:00:40.5]} 36... Rdd7 {[%clk 0:00:16.7]} 37. Qe2 {[%clk 0:00:40.7]}
37... Kg6 {[%clk 0:00:16.3]} 38. Qg4 {[%clk 0:00:39.8]} 38... Qf6 {[%clk
0:00:15.6]} 39. h4 {[%clk 0:00:32.4]} 39... h5 {[%clk 0:00:15.7]} 40. Qxg5+
{[%clk 0:00:32.7]} 40... Qxg5 {[%clk 0:00:16.1]} 41. hxg5 {[%clk 0:00:33.4]}
41... Kxg5 {[%clk 0:00:16.8]} 42. Na5 {[%clk 0:00:31.8]} 42... Kf6 {[%clk
0:00:16.1]} 43. Nc4 {[%clk 0:00:30.7]} 43... Rd4 {[%clk 0:00:15.7]} 44. Kf1
{[%clk 0:00:30.2]} 44... Rcd7 {[%clk 0:00:15.5]} 45. Ke2 {[%clk 0:00:30.4]}
45... Be7 {[%clk 0:00:14.6]} 46. Rc3 {[%clk 0:00:30.2]} 46... h4 {[%clk
0:00:14.3]} 47. Rh1 {[%clk 0:00:30.2]} 47... Kf7 {[%clk 0:00:14.2]} 48. Nxe5+
{[%clk 0:00:29.8]} 1-0

[Event "*** Titled Tuesday Blitz"]
[Site "Chess.com"]
[Date "2021.02.16"]
[Round "7"]
[White "pavelalexandru07"]
[Black "louis198"]
[Result "1-0"]
[WhiteElo "2331"]
[BlackElo "2514"]
[TimeControl "180+1"]
[EndTime "11:18:40 PST"]
[Termination "pavelalexandru07 won by resignation"]

1. e4 {[%clk 0:02:59.7]} 1... e6 {[%clk 0:03:00.3]} 2. d4 {[%clk 0:02:59.6]}
2... d5 {[%clk 0:03:00.6]} 3. Nc3 {[%clk 0:02:58.4]} 3... dxe4 {[%clk
0:03:00.2]} 4. Nxe4 {[%clk 0:02:58.4]} 4... Bd7 {[%clk 0:02:57.8]} 5. Nf3 {[%clk
0:02:55.6]} 5... Bc6 {[%clk 0:02:58]} 6. Nc3 {[%clk 0:02:55.5]} 6... Nf6 {[%clk
0:02:57.6]} 7. Bd3 {[%clk 0:02:49]} 7... Be7 {[%clk 0:02:57.5]} 8. O-O {[%clk
0:02:48.3]} 8... O-O {[%clk 0:02:56.9]} 9. Re1 {[%clk 0:02:45.2]} 9... Nbd7
{[%clk 0:02:51.4]} 10. Ne5 {[%clk 0:02:44]} 10... Nxe5 {[%clk 0:02:47.6]} 11.
dxe5 {[%clk 0:02:44]} 11... Qd5 {[%clk 0:02:46.1]} 12. Nxd5 {[%clk 0:02:42.8]}
12... Nxd5 {[%clk 0:02:42.8]} 13. Be4 {[%clk 0:02:40.7]} 13... Rad8 {[%clk
0:02:39.2]} 14. Bxd5 {[%clk 0:02:40.9]} 14... Rxd5 {[%clk 0:02:38.3]} 15. Qe2
{[%clk 0:02:40.9]} 15... Rfd8 {[%clk 0:02:32.1]} 16. Bf4 {[%clk 0:02:33.1]}
16... g5 {[%clk 0:02:31.1]} 17. Bg3 {[%clk 0:02:31.8]} 17... Rd2 {[%clk
0:02:27.9]} 18. Qc4 {[%clk 0:02:00.9]} 18... R8d4 {[%clk 0:02:26.3]} 19. Qf1
{[%clk 0:01:41.5]} 19... Rxc2 {[%clk 0:02:24.6]} 20. Rad1 {[%clk 0:01:40.7]}
20... Rb4 {[%clk 0:02:13.7]} 21. Re2 {[%clk 0:01:12.8]} 21... Rbxb2 {[%clk
0:01:40.1]} 22. Rxc2 {[%clk 0:01:11.5]} 22... Rxc2 {[%clk 0:01:40.7]} 23. Qd3
{[%clk 0:01:04.6]} 23... Rxa2 {[%clk 0:01:38]} 24. h4 {[%clk 0:00:56.1]} 24...
h6 {[%clk 0:01:37.1]} 25. hxg5 {[%clk 0:00:55.7]} 25... hxg5 {[%clk 0:01:37]}
26. f3 {[%clk 0:00:54]} 26... g4 {[%clk 0:01:33.7]} 27. Bf2 {[%clk 0:00:45.5]}
27... gxf3 {[%clk 0:01:29.4]} 28. gxf3 {[%clk 0:00:37.5]} 28... Ra3 {[%clk
0:01:29.3]} 29. Qf1 {[%clk 0:00:26.7]} 29... Rxf3 {[%clk 0:01:27.2]} 30. Qg2+
{[%clk 0:00:26.1]} 30... Kf8 {[%clk 0:01:25]} 31. Qh2 {[%clk 0:00:26]} 31... Kg7
{[%clk 0:01:19.3]} 32. Rd4 {[%clk 0:00:22.5]} 32... Kg6 {[%clk 0:00:21.9]} 33.
Rg4+ {[%clk 0:00:20.3]} 33... Bg5 {[%clk 0:00:18]} 34. Qh4 {[%clk 0:00:13.7]}
34... Rf5 {[%clk 0:00:10.3]} 35. Be3 {[%clk 0:00:13.5]} 35... f6 {[%clk
0:00:10.7]} 36. exf6 {[%clk 0:00:12.7]} 1-0

[Event "*** Titled Tuesday Blitz"]
[Site "Chess.com"]
[Date "2021.02.16"]
[Round "7"]
[White "ketster"]
[Black "akanga001"]
[Result "1-0"]
[WhiteElo "2434"]
[BlackElo "1987"]
[TimeControl "180+1"]
[EndTime "11:18:44 PST"]
[Termination "ketster won by checkmate"]

1. d4 {[%clk 0:03:00.9]} 1... Nf6 {[%clk 0:02:59.1]} 2. c4 {[%clk 0:02:56.1]}
2... b6 {[%clk 0:02:59.1]} 3. Nc3 {[%clk 0:02:54.1]} 3... Bb7 {[%clk 0:02:59.1]}
4. d5 {[%clk 0:02:49.5]} 4... g6 {[%clk 0:02:58]} 5. e4 {[%clk 0:02:43.7]} 5...
d6 {[%clk 0:02:58.3]} 6. Bd3 {[%clk 0:02:37.6]} 6... Bg7 {[%clk 0:02:58.3]} 7.
Nf3 {[%clk 0:02:34.4]} 7... O-O {[%clk 0:02:58.3]} 8. O-O {[%clk 0:02:29.6]}
8... c6 {[%clk 0:02:55.3]} 9. Bg5 {[%clk 0:02:26.2]} 9... cxd5 {[%clk
0:02:54.6]} 10. exd5 {[%clk 0:02:11]} 10... h6 {[%clk 0:02:53.9]} 11. Bf4 {[%clk
0:02:02.7]} 11... Nbd7 {[%clk 0:02:53.8]} 12. Qd2 {[%clk 0:02:02.1]} 12... Kh7
{[%clk 0:02:51.5]} 13. Rfe1 {[%clk 0:01:55.3]} 13... Nc5 {[%clk 0:02:44.6]} 14.
Bc2 {[%clk 0:01:54.8]} 14... Bc8 {[%clk 0:02:09.2]} 15. b4 {[%clk 0:01:44.4]}
15... Ncd7 {[%clk 0:01:56.3]} 16. Rac1 {[%clk 0:01:33.8]} 16... Re8 {[%clk
0:01:55.7]} 17. Nd4 {[%clk 0:01:23.4]} 17... Bb7 {[%clk 0:01:54.3]} 18. Ba4
{[%clk 0:01:14.7]} 18... Qc7 {[%clk 0:01:50.5]} 19. Nc6 {[%clk 0:01:09.6]} 19...
Nh5 {[%clk 0:01:38.3]} 20. Nxe7 {[%clk 0:00:52.3]} 20... Nxf4 {[%clk 0:01:35.1]}
21. Qxf4 {[%clk 0:00:51.7]} 21... Nf6 {[%clk 0:01:35.1]} 22. Bxe8 {[%clk
0:00:49.9]} 22... Rxe8 {[%clk 0:01:32.8]} 23. Nc6 {[%clk 0:00:47.4]} 23... Bxc6
{[%clk 0:01:29.6]} 24. dxc6 {[%clk 0:00:46.3]} 24... Qxc6 {[%clk 0:01:30]} 25.
Rxe8 {[%clk 0:00:41.4]} 25... Qxe8 {[%clk 0:01:28.1]} 26. h3 {[%clk 0:00:38.1]}
26... Qe6 {[%clk 0:01:22.5]} 27. Nb5 {[%clk 0:00:36.8]} 27... d5 {[%clk
0:01:17.2]} 28. c5 {[%clk 0:00:36.2]} 28... bxc5 {[%clk 0:01:15.9]} 29. bxc5
{[%clk 0:00:36.2]} 29... Qc6 {[%clk 0:01:15]} 30. Nxa7 {[%clk 0:00:33.3]} 30...
Qa6 {[%clk 0:01:11.9]} 31. c6 {[%clk 0:00:31.6]} 31... Nh5 {[%clk 0:00:56.9]}
32. Qxf7 {[%clk 0:00:30.1]} 32... Qa3 {[%clk 0:00:50.4]} 33. Re1 {[%clk
0:00:25.2]} 33... Nf4 {[%clk 0:00:40.5]} 34. Qxf4 {[%clk 0:00:23.6]} 34... Qxa7
{[%clk 0:00:39.6]} 35. c7 {[%clk 0:00:23.2]} 35... Qb7 {[%clk 0:00:31.5]} 36.
Re8 {[%clk 0:00:22.9]} 36... Qb1+ {[%clk 0:00:22]} 37. Kh2 {[%clk 0:00:22.9]}
37... d4 {[%clk 0:00:08]} 38. c8=Q {[%clk 0:00:22.4]} 38... d3 {[%clk
0:00:08.5]} 39. Qfc7 {[%clk 0:00:17.8]} 39... d2 {[%clk 0:00:06.1]} 40. Rh8#
{[%clk 0:00:17.4]} 1-0

[Event "*** Titled Tuesday Blitz"]
[Site "Chess.com"]
[Date "2021.02.16"]
[Round "7"]
[White "MartinMatthiesen"]
[Black "EdmundPlayer"]
[Result "1-0"]
[WhiteElo "2370"]
[BlackElo "2186"]
[TimeControl "180+1"]
[EndTime "11:18:46 PST"]
[Termination "MartinMatthiesen won on time"]

1. d4 {[%clk 0:03:00.9]} 1... d5 {[%clk 0:02:58]} 2. c4 {[%clk 0:03:00.6]} 2...
dxc4 {[%clk 0:02:58.9]} 3. e3 {[%clk 0:03:00.4]} 3... e5 {[%clk 0:02:57.8]} 4.
Bxc4 {[%clk 0:02:59.8]} 4... exd4 {[%clk 0:02:58.3]} 5. exd4 {[%clk 0:03:00.7]}
5... Bd6 {[%clk 0:02:58.2]} 6. Nf3 {[%clk 0:02:59.3]} 6... Nf6 {[%clk
0:02:58.1]} 7. Qe2+ {[%clk 0:02:58.5]} 7... Be7 {[%clk 0:02:49.5]} 8. O-O {[%clk
0:02:56.3]} 8... O-O {[%clk 0:02:49.3]} 9. Nc3 {[%clk 0:02:55.4]} 9... Bg4
{[%clk 0:02:34.9]} 10. Rd1 {[%clk 0:02:53.2]} 10... Nc6 {[%clk 0:01:58.4]} 11.
Be3 {[%clk 0:02:46.4]} 11... a6 {[%clk 0:01:52.3]} 12. a3 {[%clk 0:02:45.4]}
12... Bd6 {[%clk 0:01:37.8]} 13. h3 {[%clk 0:02:34.4]} 13... Bh5 {[%clk
0:01:35.9]} 14. g4 {[%clk 0:02:26.8]} 14... Bg6 {[%clk 0:01:35.4]} 15. Nh4
{[%clk 0:02:20.4]} 15... Re8 {[%clk 0:01:11.3]} 16. Nxg6 {[%clk 0:02:11.9]}
16... hxg6 {[%clk 0:01:10.3]} 17. Qf3 {[%clk 0:02:11.3]} 17... Qd7 {[%clk
0:00:57.1]} 18. Kg2 {[%clk 0:01:42]} 18... b5 {[%clk 0:00:51.3]} 19. Ba2 {[%clk
0:01:32.1]} 19... Ne7 {[%clk 0:00:36.9]} 20. g5 {[%clk 0:01:27.3]} 20... Nh5
{[%clk 0:00:34.8]} 21. Bxf7+ {[%clk 0:01:25.3]} 21... Kh7 {[%clk 0:00:33.2]} 22.
Qg4 {[%clk 0:00:56.5]} 22... Nf5 {[%clk 0:00:21.3]} 23. Bxe8 {[%clk 0:00:48.7]}
23... Rxe8 {[%clk 0:00:22.2]} 24. Re1 {[%clk 0:00:45]} 24... Qc6+ {[%clk
0:00:20.5]} 25. d5 {[%clk 0:00:44.2]} 25... Qd7 {[%clk 0:00:18.6]} 26. Bd2
{[%clk 0:00:41.1]} 26... Rf8 {[%clk 0:00:17.7]} 27. Re6 {[%clk 0:00:39.7]} 27...
Qf7 {[%clk 0:00:16.2]} 28. Rf1 {[%clk 0:00:37.7]} 28... Bc5 {[%clk 0:00:13.8]}
29. Ne4 {[%clk 0:00:36.4]} 29... Bb6 {[%clk 0:00:11.9]} 30. Re1 {[%clk
0:00:20.2]} 30... Nd4 {[%clk 0:00:11.9]} 31. Bc3 {[%clk 0:00:15]} 31... Nxe6
{[%clk 0:00:07.3]} 32. dxe6 {[%clk 0:00:15.3]} 32... Nf4+ {[%clk 0:00:06]} 33.
Kh1 {[%clk 0:00:14.2]} 33... Nxe6 {[%clk 0:00:04.1]} 34. Nf6+ {[%clk 0:00:13.4]}
34... gxf6 {[%clk 0:00:03.4]} 35. Rxe6 {[%clk 0:00:14]} 35... f5 {[%clk
0:00:03]} 36. Qe2 {[%clk 0:00:14]} 36... Kg8 {[%clk 0:00:01.3]} 37. Re7 {[%clk
0:00:13.8]} 1-0

[Event "*** Titled Tuesday Blitz"]
[Site "Chess.com"]
[Date "2021.02.16"]
[Round "7"]
[White "AldokhinIvan"]
[Black "Sanyura"]
[Result "1-0"]
[WhiteElo "2459"]
[BlackElo "2705"]
[TimeControl "180+1"]
[EndTime "11:18:48 PST"]
[Termination "AldokhinIvan won on time"]

1. e4 {[%clk 0:02:58.5]} 1... c6 {[%clk 0:03:00.3]} 2. Nc3 {[%clk 0:02:58.3]}
2... d5 {[%clk 0:03:00.6]} 3. d4 {[%clk 0:02:59.1]} 3... dxe4 {[%clk 0:02:58.8]}
4. Nxe4 {[%clk 0:02:59.8]} 4... Nf6 {[%clk 0:02:59.5]} 5. Nxf6+ {[%clk
0:03:00.1]} 5... exf6 {[%clk 0:03:00.4]} 6. c3 {[%clk 0:02:58.3]} 6... Bd6
{[%clk 0:03:01.1]} 7. Bd3 {[%clk 0:02:59]} 7... O-O {[%clk 0:03:01.6]} 8. Ne2
{[%clk 0:02:59.8]} 8... Re8 {[%clk 0:03:02.2]} 9. Qc2 {[%clk 0:03:00.5]} 9... h5
{[%clk 0:03:02.6]} 10. O-O {[%clk 0:02:47.5]} 10... h4 {[%clk 0:03:02.5]} 11. h3
{[%clk 0:02:37.8]} 11... Nd7 {[%clk 0:03:02.3]} 12. Bd2 {[%clk 0:02:25.2]} 12...
Nf8 {[%clk 0:03:02.2]} 13. Rae1 {[%clk 0:02:24.2]} 13... Be6 {[%clk 0:03:01.7]}
14. Nf4 {[%clk 0:02:22.4]} 14... Qd7 {[%clk 0:02:55.1]} 15. Nxe6 {[%clk
0:02:20.1]} 15... Nxe6 {[%clk 0:02:56]} 16. Bh7+ {[%clk 0:02:18.7]} 16... Kh8
{[%clk 0:02:54.7]} 17. Bf5 {[%clk 0:02:12.4]} 17... g6 {[%clk 0:02:46.9]} 18.
Re4 {[%clk 0:01:56.4]} 18... Kg8 {[%clk 0:00:54.2]} 19. Rxh4 {[%clk 0:01:46.4]}
19... Bf8 {[%clk 0:00:51.9]} 20. Bxe6 {[%clk 0:01:19.8]} 20... Qxe6 {[%clk
0:00:37.4]} 21. b3 {[%clk 0:01:10.9]} 21... f5 {[%clk 0:00:37.5]} 22. Rf4 {[%clk
0:00:59.6]} 22... Bd6 {[%clk 0:00:25.7]} 23. Rf3 {[%clk 0:00:59.9]} 23... Qe2
{[%clk 0:00:25.5]} 24. Qd3 {[%clk 0:00:51.5]} 24... Re6 {[%clk 0:00:13.4]} 25.
Re3 {[%clk 0:00:48]} 25... Rxe3 {[%clk 0:00:09.3]} 26. Qxe3 {[%clk 0:00:47.5]}
26... Qa6 {[%clk 0:00:08.6]} 27. a4 {[%clk 0:00:45.1]} 27... Qb6 {[%clk
0:00:08.3]} 28. c4 {[%clk 0:00:41.7]} 28... Qc7 {[%clk 0:00:05.9]} 29. Bc3
{[%clk 0:00:40.9]} 29... Bf4 {[%clk 0:00:04.9]} 30. Qe2 {[%clk 0:00:38.6]} 30...
Bh2+ {[%clk 0:00:03.9]} 31. Kh1 {[%clk 0:00:38.6]} 31... Bd6 {[%clk 0:00:03]}
32. Re1 {[%clk 0:00:39.1]} 32... Bf8 {[%clk 0:00:02.3]} 33. Qd3 {[%clk
0:00:37.4]} 33... Bg7 {[%clk 0:00:02.5]} 34. Bb4 {[%clk 0:00:30.2]} 34... Rd8
{[%clk 0:00:01.9]} 35. d5 {[%clk 0:00:30.5]} 35... cxd5 {[%clk 0:00:01.5]} 36.
cxd5 {[%clk 0:00:31.1]} 36... Qb6 {[%clk 0:00:02.1]} 37. Qd2 {[%clk 0:00:24.4]}
37... Rd7 {[%clk 0:00:02.3]} 38. Re8+ {[%clk 0:00:19.9]} 38... Kh7 {[%clk
0:00:02.1]} 39. Qf4 {[%clk 0:00:20.3]} 1-0

[Event "*** Titled Tuesday Blitz"]
[Site "Chess.com"]
[Date "2021.02.16"]
[Round "7"]
[White "frankshar"]
[Black "awesomevishesh"]
[Result "1-0"]
[WhiteElo "2404"]
[BlackElo "2504"]
[TimeControl "180+1"]
[EndTime "11:18:49 PST"]
[Termination "frankshar won on time"]

1. d4 {[%clk 0:03:00.9]} 1... Nf6 {[%clk 0:02:59.6]} 2. c4 {[%clk 0:03:00.7]}
2... g6 {[%clk 0:02:59.4]} 3. Nc3 {[%clk 0:03:00.2]} 3... Bg7 {[%clk 0:02:59.9]}
4. e4 {[%clk 0:03:00]} 4... d6 {[%clk 0:03:00.1]} 5. Be2 {[%clk 0:02:59.7]} 5...
O-O {[%clk 0:03:00.1]} 6. Nf3 {[%clk 0:02:59.8]} 6... Nbd7 {[%clk 0:02:59.5]} 7.
O-O {[%clk 0:02:58.9]} 7... e5 {[%clk 0:03:00.4]} 8. dxe5 {[%clk 0:02:59.3]}
8... dxe5 {[%clk 0:03:00.2]} 9. Qc2 {[%clk 0:02:57.5]} 9... c6 {[%clk
0:02:59.4]} 10. b4 {[%clk 0:02:57.3]} 10... a5 {[%clk 0:02:58.1]} 11. b5 {[%clk
0:02:56.7]} 11... Qc7 {[%clk 0:02:52.3]} 12. Rd1 {[%clk 0:02:53]} 12... Re8
{[%clk 0:02:52.2]} 13. Ba3 {[%clk 0:02:49.7]} 13... Bf8 {[%clk 0:02:51.3]} 14.
Qc1 {[%clk 0:02:38.9]} 14... Nc5 {[%clk 0:02:44.6]} 15. Qe3 {[%clk 0:02:31.6]}
15... Ng4 {[%clk 0:02:21.4]} 16. Qc1 {[%clk 0:02:20.8]} 16... Ne6 {[%clk
0:02:14.6]} 17. h3 {[%clk 0:01:59.7]} 17... Bxa3 {[%clk 0:02:12.7]} 18. Qxa3
{[%clk 0:02:00.6]} 18... Nf6 {[%clk 0:02:12.1]} 19. c5 {[%clk 0:01:56.3]} 19...
Nf4 {[%clk 0:02:06.2]} 20. Bc4 {[%clk 0:01:41.2]} 20... Be6 {[%clk 0:02:00.6]}
21. Bxe6 {[%clk 0:01:39.9]} 21... Nxe6 {[%clk 0:01:59.8]} 22. b6 {[%clk
0:01:31.7]} 22... Qe7 {[%clk 0:01:59.3]} 23. Rd6 {[%clk 0:01:29.4]} 23... Nd7
{[%clk 0:01:56.6]} 24. Rad1 {[%clk 0:01:01]} 24... Ndxc5 {[%clk 0:01:44.5]} 25.
Nxe5 {[%clk 0:00:58.9]} 25... Rad8 {[%clk 0:01:31.8]} 26. Nc4 {[%clk 0:00:52.6]}
26... Rxd6 {[%clk 0:00:10.9]} 27. Nxd6 {[%clk 0:00:51.2]} 27... Rd8 {[%clk
0:00:10.4]} 28. e5 {[%clk 0:00:51.7]} 28... f6 {[%clk 0:00:08.5]} 29. Qxa5
{[%clk 0:00:37.9]} 29... fxe5 {[%clk 0:00:07.6]} 30. Nc4 {[%clk 0:00:35.9]}
30... Rxd1+ {[%clk 0:00:07]} 31. Nxd1 {[%clk 0:00:36.8]} 31... e4 {[%clk
0:00:05.4]} 32. Nde3 {[%clk 0:00:33.7]} 32... Kg7 {[%clk 0:00:05.2]} 33. Qc3+
{[%clk 0:00:32.9]} 33... Qf6 {[%clk 0:00:04.6]} 34. Ne5 {[%clk 0:00:23.1]} 34...
Na4 {[%clk 0:00:03.8]} 35. Qa1 {[%clk 0:00:18.7]} 35... Nxb6 {[%clk 0:00:03]}
36. N3g4 {[%clk 0:00:18.9]} 36... Qe7 {[%clk 0:00:01.2]} 37. Nxc6+ {[%clk
0:00:17.1]} 1-0